bitfinex/quotes_BTCUSD_20250908
["timestamp","ask_amount","ask_price","bid_price","bid_amount"]
[1757363578974,0.00046281,112010.0,112000.0,0.40581142]
[1757363579184,0.00046281,112010.0,112000.0,0.43260045]
[1757363585297,0.00046281,112010.0,112000.0,0.43032045]
[1757363586430,0.00046281,112010.0,112000.0,0.43260045]
[1757363588028,1.51622654,112010.0,112000.0,0.00175]
[1757363588264,0.17860332,111980.0,111970.0,0.07412]
[1757363588542,0.18139399,111980.0,111970.0,0.07412]
[1757363588753,0.18665399,111980.0,111970.0,0.07412]
[1757363588993,0.21066214,111980.0,111970.0,0.07412]
[1757363589204,0.30257813,111980.0,111970.0,0.07412]
[1757363590243,0.70422824,111980.0,111970.0,0.07412]
[1757363590564,0.30257813,111980.0,111970.0,0.07412]
[1757363591210,0.70422824,111980.0,111970.0,0.07412]
[1757363591853,0.78085432,111980.0,111970.0,0.07412]
[1757363592716,0.70422824,111980.0,111970.0,0.07412]
[1757363593714,0.30257813,111980.0,111970.0,0.07412]
[1757363593931,0.70422824,111980.0,111970.0,0.07412]
[1757363595536,0.67742942,111980.0,111970.0,0.07412]
[1757363596728,0.27577931,111980.0,111970.0,0.07412]
[1757363597147,0.67742942,111980.0,111970.0,0.07412]
[1757363598473,0.27577931,111980.0,111970.0,0.07412]
[1757363598702,0.7088821,111980.0,111970.0,0.07412]
[1757363600615,0.30723199,111980.0,111970.0,0.07412]
[1757363601509,0.27577931,111980.0,111970.0,0.07412]
[1757363603255,0.67742942,111980.0,111970.0,0.07412]
[1757363604825,0.27577931,111980.0,111970.0,0.07412]
[1757363605061,0.67742942,111980.0,111970.0,0.07412]
[1757363606798,0.27577931,111980.0,111970.0,0.07412]
[1757363607224,0.67742942,111980.0,111970.0,0.07412]
[1757363607675,0.27577931,111980.0,111970.0,0.07412]
[1757363608106,0.67742942,111980.0,111970.0,0.07412]
[1757363610478,0.27577931,111980.0,111970.0,0.07412]
[1757363610718,0.67742942,111980.0,111970.0,0.07412]
[1757363610945,0.27577931,111980.0,111970.0,0.07412]
[1757363612356,0.27265931,111980.0,111970.0,0.07944]
[1757363612562,0.27051931,111980.0,111970.0,0.07944]
[1757363612982,0.27251931,111980.0,111970.0,0.07944]
[1757363613258,0.27251931,111980.0,111970.0,0.07619]
[1757363613585,0.27251931,111980.0,111970.0,0.07944]
[1757363613586,0.27051931,111980.0,111970.0,0.07944]
[1757363614180,0.27251931,111980.0,111970.0,0.07944]
[1757363614393,0.27552931,111980.0,111970.0,0.07412]
[1757363614616,0.67717942,111980.0,111970.0,0.07412]
[1757363614883,0.67717942,111980.0,111970.0,0.07619]
[1757363614884,0.27251931,111980.0,111970.0,0.07619]
[1757363615074,0.27552931,111980.0,111970.0,0.07412]
[1757363615870,0.27251931,111980.0,111970.0,0.07619]
[1757363616280,0.27552931,111980.0,111970.0,0.07412]
[1757363617522,0.67717942,111980.0,111970.0,0.07412]
[1757363617721,0.17861927,111970.0,111960.0,0.06852]
[1757363617926,0.18442019,111970.0,111960.0,0.06852]
[1757363618124,0.18362927,111970.0,111960.0,0.06852]
[1757363618382,0.18362927,111970.0,111960.0,0.21904]
[1757363618777,0.27554526,111970.0,111960.0,0.21908]
[1757363618956,0.27600778,111970.0,111960.0,0.21908]
[1757363619160,0.27600778,111970.0,111960.0,0.22008]
[1757363620040,0.27299778,111970.0,111960.0,0.22215]
[1757363620230,0.27299778,111970.0,111960.0,0.22531]
[1757363620449,0.27099778,111970.0,111960.0,0.22531]
[1757363620661,0.17908179,111970.0,111960.0,0.22531]
[1757363620886,0.17908179,111970.0,111960.0,0.40394522]
[1757363621092,0.18187271,111970.0,111960.0,0.40394522]
[1757363625388,0.18187271,111970.0,111960.0,0.25338522]
[1757363625594,0.18388271,111970.0,111960.0,0.40434522]
[1757363625800,0.18109179,111970.0,111960.0,0.40434522]
[1757363626427,0.17908179,111970.0,111960.0,0.40434522]
[1757363626638,0.18187271,111970.0,111960.0,0.40434522]
[1757363626868,0.18388271,111970.0,111960.0,0.06952]
[1757363627089,0.67596738,111970.0,111960.0,0.001]
[1757363627310,1.6302676,111970.0,111960.0,0.001]
[1757363627530,0.82696738,111970.0,111960.0,0.001]
[1757363627736,1.22861749,111970.0,111960.0,0.001]
[1757363627950,0.82716738,111970.0,111960.0,0.001]
[1757363628155,1.22881749,111970.0,111960.0,0.001]
[1757363628371,0.17865118,111950.0,111940.0,0.15116]
[1757363628583,0.1864726,111950.0,111940.0,0.15116]
[1757363628794,0.18368118,111950.0,111940.0,0.15116]
[1757363629181,0.71348034,111950.0,111940.0,0.15116]
[1757363629383,0.67724728,111950.0,111940.0,0.0002]
[1757363629994,0.67724728,111950.0,111940.0,0.0012]
[1757363630623,0.27257717,111950.0,111940.0,0.00334]
[1757363631117,0.27257717,111950.0,111940.0,0.00234]
[1757363632209,0.27257717,111950.0,111940.0,0.0055]
[1757363632380,0.27056717,111950.0,111940.0,0.0055]
[1757363632605,0.27257717,111950.0,111940.0,0.0055]
[1757363632815,0.27257717,111950.0,111940.0,0.00234]
[1757363634312,0.27357717,111950.0,111940.0,0.00234]
[1757363634454,0.27659717,111950.0,111940.0,0.0002]
[1757363634664,0.27357717,111950.0,111940.0,0.00234]
[1757363635062,0.27659717,111950.0,111940.0,0.00234]
[1757363635286,0.27357717,111950.0,111940.0,0.00234]
[1757363635857,0.27659717,111950.0,111940.0,0.00234]
[1757363636082,0.27357717,111950.0,111940.0,0.00234]
[1757363636688,0.27659717,111950.0,111940.0,0.0002]
[1757363637066,0.33739494,111950.0,111940.0,0.0002]
[1757363638083,0.27659717,111950.0,111940.0,0.0002]
[1757363638870,0.27357717,111950.0,111940.0,0.00234]
[1757363639085,0.27659717,111950.0,111940.0,0.0002]
[1757363640084,0.27357717,111950.0,111940.0,0.00234]
[1757363640271,0.27659717,111950.0,111940.0,0.0002]
[1757363644093,0.27659717,111950.0,111940.0,0.00234]
[1757363644313,0.27659717,111950.0,111940.0,0.0002]
[1757363644740,0.27357717,111950.0,111940.0,0.00234]
[1757363644956,0.27659717,111950.0,111940.0,0.0002]
[1757363645385,0.27357717,111950.0,111940.0,0.00234]
[1757363645604,0.27659717,111950.0,111940.0,0.0002]
[1757363645817,0.27357717,111950.0,111940.0,0.00234]
[1757363646048,0.27357717,111950.0,111940.0,0.0055]
[1757363646265,0.27357717,111950.0,111940.0,0.00234]
[1757363646717,0.17965118,111950.0,111940.0,0.18556052]
[1757363646944,0.17965118,111950.0,111940.0,0.18416714]
[1757363648951,0.001,111950.0,111940.0,0.18416714]
[1757363649141,0.17965118,111950.0,111940.0,0.18416714]
[1757363650761,0.17965118,111950.0,111940.0,0.33792714]
[1757363650984,0.17965118,111950.0,111940.0,0.18416714]
[1757363651211,0.17965118,111950.0,111940.0,0.33792714]
[1757363651928,0.1824426,111950.0,111940.0,0.33792714]
[1757363653164,0.1844826,111950.0,111940.0,0.15922]
[1757363653385,0.18169118,111950.0,111940.0,0.18416714]
[1757363653600,0.18169118,111950.0,111940.0,0.33792714]
[1757363653785,0.18169118,111950.0,111940.0,0.00234]
[1757363653999,0.18478118,111950.0,111940.0,0.15396]
[1757363654416,0.18478118,111950.0,111940.0,0.0002]
[1757363654617,0.18478118,111950.0,111940.0,0.154]
[1757363655365,0.18478118,111950.0,111940.0,0.0002]
[1757363655564,0.27669717,111950.0,111940.0,0.15404]
[1757363655950,0.30350381,111950.0,111940.0,0.15404]
[1757363662716,0.3954198,111950.0,111940.0,0.15404]
[1757363663457,0.30350381,111950.0,111940.0,0.15404]
[1757363669746,0.30041381,111950.0,111940.0,0.15607]
[1757363669956,0.29837381,111950.0,111940.0,0.15916]
[1757363670389,0.30041381,111950.0,111940.0,0.15607]
[1757363673052,0.30350381,111950.0,111940.0,0.15404]
[1757363678866,0.35971351,111950.0,111940.0,0.15404]
[1757363681985,0.35971351,111950.0,111940.0,0.15352]
[1757363684476,0.30350381,111950.0,111940.0,0.15352]
[1757363691635,0.30041381,111950.0,111940.0,0.1555]
[1757363691847,0.29837381,111950.0,111940.0,0.15853]
[1757363692064,0.30364381,111950.0,111940.0,0.15352]
[1757363696843,0.35585707,111950.0,111940.0,0.15352]
[1757363698875,0.35585707,111950.0,111940.0,0.22208]
[1757363701952,0.35585707,111950.0,111940.0,0.06876]
[1757363702175,0.35585707,111950.0,111940.0,0.22212]
[1757363704563,0.35585707,111950.0,111940.0,0.22204]
[1757363712542,0.30364381,111950.0,111940.0,0.06876]
[1757363712750,0.30364381,111950.0,111940.0,0.22176]
[1757363714590,0.30364381,111950.0,111940.0,0.06876]
[1757363714823,0.30364381,111950.0,111940.0,0.22176]
[1757363715259,0.30364381,111950.0,111940.0,0.22172]
[1757363715741,0.30364381,111950.0,111940.0,0.06876]
[1757363715962,0.30364381,111950.0,111940.0,0.22172]
[1757363718379,0.30364381,111950.0,111940.0,0.22164]
[1757363722072,0.17866714,111940.0,111930.0,0.18116858]
[1757363722292,0.18362881,111940.0,111930.0,0.25176858]
[1757363722486,0.18083714,111940.0,111930.0,0.25176858]
[1757363722787,0.20764515,111940.0,111930.0,0.25176858]
[1757363723317,0.20764515,111940.0,111930.0,0.40452858]
[1757363723667,0.20764515,111940.0,111930.0,0.40771858]
[1757363724070,0.20764515,111940.0,111930.0,0.40971858]
[1757363726391,0.20547515,111940.0,111930.0,0.40971858]
[1757363726608,0.20764515,111940.0,111930.0,0.40971858]
[1757363728733,0.02680801,111940.0,111930.0,0.40971858]
[1757363728936,0.18758119,111960.0,111940.0,0.17865958]
[1757363729139,0.61949718,111960.0,111950.0,0.1528]
[1757363729348,0.61949718,111960.0,111950.0,0.15803]
[1757363729555,0.64630136,111960.0,111950.0,0.15803]
[1757363729897,0.64847136,111960.0,111950.0,0.15803]
[1757363730639,0.64947136,111960.0,111950.0,0.15803]
[1757363730827,0.64847136,111960.0,111950.0,0.15803]
[1757363731177,0.64947136,111960.0,111950.0,0.15803]
[1757363731390,0.65147136,111960.0,111950.0,0.15803]
[1757363735017,0.64930136,111960.0,111950.0,0.15803]
[1757363736773,0.30930136,111960.0,111950.0,0.15803]
[1757363738226,0.30930136,111960.0,111950.0,0.22659]
[1757363740053,0.39954011,111960.0,111950.0,0.22659]
[1757363740278,0.02980418,111960.0,111950.0,0.40524118]
[1757363744320,0.02980418,111960.0,111950.0,0.40524118]
[1757363746322,0.02980418,111960.0,111950.0,0.40508118]
[1757363746960,0.02780418,111960.0,111950.0,0.40508118]
[1757363747138,0.02680418,111960.0,111950.0,0.40508118]
[1757363747354,0.02780418,111960.0,111950.0,0.40508118]
[1757363748471,0.02780418,111960.0,111950.0,0.40504118]
[1757363749511,0.02780418,111960.0,111950.0,0.25244118]
[1757363749744,0.02983418,111960.0,111950.0,0.40504118]
[1757363750169,0.2116594,111960.0,111950.0,0.25803846]
[1757363750383,0.2116594,111960.0,111950.0,0.25599846]
[1757363750597,0.2116594,111960.0,111950.0,0.40863846]
[1757363751271,0.2116594,111960.0,111950.0,0.07734728]
[1757363751521,0.34264956,111960.0,111950.0,0.22124]
[1757363756772,0.34264956,111960.0,111950.0,0.39989118]
[1757363759815,0.30357539,111960.0,111950.0,0.40203118]
[1757363760268,0.30357539,111960.0,111950.0,0.22338]
[1757363760481,0.30357539,111960.0,111950.0,0.22124]
[1757363760983,0.30357539,111960.0,111950.0,0.39989118]
[1757363763478,0.30357539,111960.0,111950.0,0.40203118]
[1757363763693,0.35184116,111960.0,111950.0,0.40203118]
[1757363763902,0.34865116,111960.0,111950.0,0.40203118]
[1757363764897,0.35184116,111960.0,111950.0,0.40203118]
[1757363765349,0.29835539,111960.0,111950.0,0.40526118]
[1757363765525,0.11972017,111960.0,111950.0,0.40526118]
[1757363765731,0.29835539,111960.0,111950.0,0.40526118]
[1757363765917,0.11972017,111960.0,111950.0,0.40526118]
[1757363766344,0.30114656,111960.0,111950.0,0.40526118]
[1757363766568,0.29835539,111960.0,111950.0,0.40526118]
[1757363766975,0.11972017,111960.0,111950.0,0.40526118]
[1757363767324,0.29835539,111960.0,111950.0,0.40526118]
[1757363767883,0.11972017,111960.0,111950.0,0.40526118]
[1757363768295,0.29835539,111960.0,111950.0,0.40526118]
[1757363770112,0.11972017,111960.0,111950.0,0.40526118]
[1757363771738,0.29835539,111960.0,111950.0,0.40526118]
[1757363773001,0.30037539,111960.0,111950.0,0.40203118]
[1757363773316,0.30037539,111960.0,111950.0,0.40509118]
[1757363774151,0.29835539,111960.0,111950.0,0.40509118]
[1757363775862,0.27155121,111960.0,111950.0,0.40509118]
[1757363778174,0.001,111960.0,111950.0,0.40509118]
[1757363781746,0.001,111960.0,111950.0,0.40409118]
[1757363783527,0.18463522,111960.0,111950.0,0.39881118]
[1757363784545,0.18463522,111960.0,111950.0,0.24721118]
[1757363784907,0.18165522,111960.0,111950.0,0.39877118]
[1757363785108,0.17963522,111960.0,111950.0,0.40382118]
[1757363785356,0.18242639,111960.0,111950.0,0.40382118]
[1757363790772,0.00379117,111960.0,111950.0,0.40382118]
[1757363790987,0.18242639,111960.0,111950.0,0.40382118]
[1757363797709,0.00379117,111960.0,111950.0,0.40382118]
[1757363798266,0.18242639,111960.0,111950.0,0.40382118]
[1757363798484,0.00379117,111960.0,111950.0,0.40382118]
[1757363799032,0.18242639,111960.0,111950.0,0.40382118]
[1757363799240,0.001,111960.0,111950.0,0.40382118]
[1757363801806,0.001,111960.0,111950.0,0.25226118]
[1757363801948,0.001,111960.0,111950.0,0.40338118]
[1757363803651,0.001,111960.0,111950.0,0.25226118]
[1757363803859,0.001,111960.0,111950.0,0.40334118]
[1757363822231,0.001,111960.0,111950.0,0.25226118]
[1757363822433,0.001,111960.0,111950.0,0.40290118]
[1757363828573,0.001,111960.0,111950.0,0.61718118]
[1757363854384,0.00313,111960.0,111950.0,0.46348118]
[1757363854597,0.001,111960.0,111950.0,0.61719118]
[1757363857187,0.00313,111960.0,111950.0,0.61719118]
[1757363859797,0.18495522,111960.0,111950.0,0.46149118]
[1757363860015,0.18495522,111960.0,111950.0,0.43344]
[1757363860232,0.26423027,111960.0,111950.0,0.61209118]
[1757363860418,0.29103393,111960.0,111950.0,0.61209118]
[1757363861158,0.29103393,111960.0,111950.0,0.46149118]
[1757363861376,0.29103393,111960.0,111950.0,0.61209118]
[1757363863719,0.29103393,111960.0,111950.0,0.46149118]
[1757363863940,0.29103393,111960.0,111950.0,0.61205118]
[1757363865613,0.21175888,111960.0,111950.0,0.61205118]
[1757363871226,0.21175888,111960.0,111950.0,0.46149118]
[1757363871429,0.21175888,111960.0,111950.0,0.61205118]
[1757363871628,0.21175888,111960.0,111950.0,0.39777118]
[1757363873616,0.21175888,111960.0,111950.0,0.24721118]
[1757363873836,0.2910342,111960.0,111950.0,0.39777118]
[1757363875019,0.2910342,111960.0,111950.0,0.24721118]
[1757363875020,0.21175888,111960.0,111950.0,0.24721118]
[1757363875241,0.21175888,111960.0,111950.0,0.39777118]
[1757363875447,0.20856888,111960.0,111950.0,0.39988118]
[1757363875653,0.20643888,111960.0,111950.0,0.40303118]
[1757363876338,0.02780366,111960.0,111950.0,0.40303118]
[1757363876569,0.03255483,111960.0,111950.0,0.40303118]
[1757363877219,0.21119005,111960.0,111950.0,0.40303118]
[1757363877416,0.20839888,111960.0,111950.0,0.40303118]
[1757363878347,0.20839888,111960.0,111950.0,0.39988118]
[1757363878721,0.20839888,111960.0,111950.0,0.40303118]
[1757363878932,0.02976366,111960.0,111950.0,0.40303118]
[1757363879138,0.21119005,111960.0,111950.0,0.40303118]
[1757363879341,0.20839888,111960.0,111950.0,0.40303118]
[1757363880308,0.20839888,111960.0,111950.0,0.39988118]
[1757363880985,0.20643888,111960.0,111950.0,0.40303118]
[1757363881214,0.20643888,111960.0,111950.0,0.45303118]
[1757363881417,0.20839888,111960.0,111950.0,0.45303118]
[1757363881626,0.21133888,111960.0,111950.0,0.44777118]
[1757363884952,0.20839888,111960.0,111950.0,0.44988118]
[1757363885369,0.21133888,111960.0,111950.0,0.44777118]
[1757363887194,0.21133888,111960.0,111950.0,0.29721118]
[1757363887417,0.21133888,111960.0,111950.0,0.44777118]
[1757363889180,0.21133888,111960.0,111950.0,0.29721118]
[1757363889457,0.21133888,111960.0,111950.0,0.44777118]
[1757363889807,0.21133888,111960.0,111950.0,0.29721118]
[1757363890012,0.21133888,111960.0,111950.0,0.44773118]
[1757363890550,0.25038103,111960.0,111950.0,0.29721118]
[1757363890751,0.25038103,111960.0,111950.0,0.44773118]
[1757363892175,0.24548103,111960.0,111950.0,0.44989118]
[1757363892385,0.24548103,111960.0,111950.0,0.45291118]
[1757363892689,0.24744103,111960.0,111950.0,0.45291118]
[1757363893011,0.20643888,111960.0,111950.0,0.45291118]
[1757363894123,0.20839888,111960.0,111950.0,0.45291118]
[1757363894660,0.20643888,111960.0,111950.0,0.44773118]
[1757363894842,0.20839888,111960.0,111950.0,0.44989118]
[1757363898161,0.20839888,111960.0,111950.0,0.27124]
[1757363898325,0.24551202,111960.0,111950.0,0.26908]
[1757363898648,0.24551202,111960.0,111950.0,0.44773118]
[1757363899099,0.20643888,111960.0,111950.0,0.44773118]
[1757363899316,0.20643888,111960.0,111950.0,0.26908]
[1757363899563,0.20643888,111960.0,111950.0,0.44773118]
[1757363899840,0.20643888,111960.0,111950.0,0.26908]
[1757363900255,0.20643888,111960.0,111950.0,0.44773118]
[1757363901979,0.20643888,111960.0,111950.0,0.26908]
[1757363902609,0.20643888,111960.0,111950.0,0.44773118]
[1757363908318,0.20643888,111960.0,111950.0,0.26908]
[1757363908642,0.20643888,111960.0,111950.0,0.44773118]
[1757363909133,0.20643888,111960.0,111950.0,0.26908]
[1757363909307,0.20643888,111960.0,111950.0,0.44773118]
[1757363911712,0.20643888,111960.0,111950.0,0.26908]
[1757363912385,0.24499102,111960.0,111950.0,0.26908]
[1757363916919,0.24499102,111960.0,111950.0,0.11856]
[1757363917087,0.24499102,111960.0,111950.0,0.269]
[1757363924949,0.20643888,111960.0,111950.0,0.269]
[1757363929908,0.20643888,111960.0,111950.0,0.11856]
[1757363930116,0.20643888,111960.0,111950.0,0.26896]
[1757363939738,1.55225712,111960.0,111950.0,0.05]
[1757363939942,1.66787311,111960.0,111950.0,0.05]
[1757363940340,1.59726099,111960.0,111950.0,0.05]
[1757363941105,1.61650888,111960.0,111950.0,0.05]
[1757363941495,1.59626099,111960.0,111950.0,0.05]
[1757363941861,1.59626099,111960.0,111950.0,0.051]
[1757363941862,1.60126099,111960.0,111950.0,0.051]
[1757363942097,1.60426099,111960.0,111950.0,0.051]
[1757363943576,0.80020363,111960.0,111950.0,0.051]
[1757363943812,1.60426099,111960.0,111950.0,0.051]
[1757363944532,1.60470115,111960.0,111950.0,0.051]
[1757363944717,0.80020363,111960.0,111950.0,0.051]
[1757363944867,1.60470115,111960.0,111950.0,0.051]
[1757363953043,0.80020363,111960.0,111950.0,0.051]
[1757363953246,1.60470115,111960.0,111950.0,0.051]
[1757363955125,1.60470115,111960.0,111950.0,0.20136]
[1757363958372,1.60985115,111960.0,111950.0,0.20136]
[1757363962166,0.80535363,111960.0,111950.0,0.20136]
[1757363962387,1.60985115,111960.0,111950.0,0.20136]
[1757363962715,0.80535363,111960.0,111950.0,0.20136]
[1757363963125,1.60985115,111960.0,111950.0,0.20136]
[1757363963992,1.60985115,111960.0,111950.0,0.051]
[1757363964200,1.60985115,111960.0,111950.0,0.20132]
[1757363969403,1.64581044,111960.0,111950.0,0.20132]
[1757363969616,0.84131292,111960.0,111950.0,0.20132]
[1757363969835,1.64581044,111960.0,111950.0,0.20132]
[1757363972341,0.84131292,111960.0,111950.0,0.20132]
[1757363972772,1.60985115,111960.0,111950.0,0.20132]
[1757363978898,0.80535363,111960.0,111950.0,0.20132]
[1757363979111,1.60985115,111960.0,111950.0,0.20132]
[1757363983478,1.60985115,111960.0,111950.0,0.051]
[1757363983718,1.60985115,111960.0,111950.0,0.20132]
[1757363990961,1.60985115,111960.0,111950.0,0.051]
[1757363991151,1.60985115,111960.0,111950.0,0.20128]
[1757363993870,0.80535363,111960.0,111950.0,0.20128]
[1757363994086,1.60985115,111960.0,111950.0,0.20128]
[1757363995825,1.60985115,111960.0,111950.0,0.051]
[1757363996030,1.60985115,111960.0,111950.0,0.20128]
[1757363997289,1.60985115,111960.0,111950.0,0.20080351]
[1757364001352,1.60985115,111960.0,111950.0,0.05052351]
[1757364001588,1.60985115,111960.0,111950.0,0.20080351]
[1757364004428,1.20756905,111960.0,111950.0,0.20080351]
[1757364008525,1.20756905,111960.0,111950.0,0.05052351]
[1757364008735,1.63072329,111960.0,111950.0,0.05052351]
[1757364009123,1.81690911,111960.0,111950.0,0.05052351]
[1757364010262,1.82317238,111960.0,111950.0,0.05052351]
[1757364011114,1.67293238,111960.0,111950.0,0.05052351]
[1757364018367,1.66666911,111960.0,111950.0,0.05052351]
[1757364022884,1.66666911,111960.0,111950.0,0.20076351]
[1757364023086,1.66665958,111960.0,111950.0,0.20076351]
[1757364030650,1.66665632,111960.0,111950.0,0.20076351]
[1757364036003,1.67292027,111960.0,111950.0,0.20076351]
[1757364036190,1.6729208,111960.0,111950.0,0.20076351]
[1757364036323,1.66665632,111960.0,111950.0,0.20076351]
[1757364036727,1.67292082,111960.0,111950.0,0.20076351]
[1757364043503,0.86848998,111960.0,111950.0,0.20076351]
[1757364043708,1.67292082,111960.0,111950.0,0.20076351]
[1757364054148,1.67292082,111960.0,111950.0,0.05052351]
[1757364054384,1.67292082,111960.0,111950.0,0.20064351]
[1757364057091,1.67292082,111960.0,111950.0,0.25064351]
[1757364060565,1.66665632,111960.0,111950.0,0.25064351]
[1757364060770,1.67292272,111960.0,111950.0,0.25064351]
[1757364061546,0.86849188,111960.0,111950.0,0.25064351]
[1757364061723,1.2407409,111960.0,111950.0,0.25064351]
[1757364061939,1.24700734,111960.0,111950.0,0.25064351]
[1757364062138,1.2407409,111960.0,111950.0,0.25064351]
[1757364063056,1.24700727,111960.0,111950.0,0.25064351]
[1757364063794,1.64922269,111960.0,111950.0,0.25060351]
[1757364066519,1.64930487,111960.0,111950.0,0.25060351]
[1757364069454,1.64930487,111960.0,111950.0,0.10052351]
[1757364069659,1.64930487,111960.0,111950.0,0.25060351]
[1757364069822,1.67356487,111960.0,111950.0,0.25060351]
[1757364070420,1.65686474,111960.0,111950.0,0.25060351]
[1757364070629,1.6735736,111960.0,111950.0,0.25060351]
[1757364073753,1.8236136,111960.0,111950.0,0.25060351]
[1757364074553,1.65686474,111960.0,111950.0,0.25060351]
[1757364074759,1.82361296,111960.0,111950.0,0.25060351]
[1757364075580,1.82361296,111960.0,111950.0,0.10052351]
[1757364077996,1.80690474,111960.0,111950.0,0.10052351]
[1757364079749,1.65686474,111960.0,111950.0,0.10052351]
[1757364079955,1.63260474,111960.0,111950.0,0.10052351]
[1757364081103,1.23034823,111960.0,111950.0,0.10052351]
[1757364081341,1.60710547,111960.0,111950.0,0.10052351]
[1757364081712,1.62635195,111960.0,111950.0,0.10052351]
[1757364084023,1.60541313,111960.0,111950.0,0.10052351]
[1757364086010,1.60232313,111960.0,111950.0,0.10052351]
[1757364086216,1.60551313,111960.0,111950.0,0.10052351]
[1757364086413,1.60551313,111960.0,111950.0,0.25052351]
[1757364088552,1.61177715,111960.0,111950.0,0.25052351]
[1757364092509,1.61177715,111960.0,111950.0,0.10052351]
[1757364092732,1.61177715,111960.0,111950.0,0.25048351]
[1757364098175,1.61177715,111960.0,111950.0,0.10052351]
[1757364098366,1.61177715,111960.0,111950.0,0.25048351]
[1757364104508,1.61177715,111960.0,111950.0,0.10052351]
[1757364104684,1.61177715,111960.0,111950.0,0.25044351]
[1757364106609,1.76169715,111960.0,111950.0,0.25044351]
[1757364108525,1.61177753,111960.0,111950.0,0.25044351]
[1757364109022,0.80726451,111960.0,111950.0,0.25044351]
[1757364109235,1.61177753,111960.0,111950.0,0.25044351]
[1757364110474,1.76165753,111960.0,111950.0,0.25044351]
[1757364113556,1.75539313,111960.0,111950.0,0.25044351]
[1757364113753,1.76165811,111960.0,111950.0,0.25044351]
[1757364118128,1.77837064,111960.0,111950.0,0.25044351]
[1757364118340,1.77837064,111960.0,111950.0,0.10052351]
[1757364118564,1.77837064,111960.0,111950.0,0.25040351]
[1757364121392,2.20156597,111960.0,111950.0,0.25036351]
[1757364121627,2.20156597,111960.0,111950.0,0.10052351]
[1757364122573,2.23200816,111960.0,111950.0,0.10052351]
[1757364125964,1.02523863,111960.0,111950.0,0.10052351]
[1757364126187,2.23200816,111960.0,111950.0,0.10052351]
[1757364126424,1.82989555,111960.0,111950.0,0.10052351]
[1757364128860,1.68001555,111960.0,111950.0,0.10052351]
[1757364128986,1.82981555,111960.0,111950.0,0.10052351]
[1757364129422,1.85348555,111960.0,111950.0,0.10052351]
[1757364133063,1.70368555,111960.0,111950.0,0.10052351]
[1757364133251,1.85348555,111960.0,111950.0,0.10052351]
[1757364133615,1.85349894,111960.0,111950.0,0.10052351]
[1757364136459,1.92349894,111960.0,111950.0,0.10052351]
[1757364138020,1.85349894,111960.0,111950.0,0.10052351]
[1757364138223,1.87754007,111960.0,111950.0,0.10052351]
[1757364141048,1.85454917,111960.0,111950.0,0.10052351]
[1757364141254,1.87755252,111960.0,111950.0,0.10052351]
[1757364143784,1.84711033,111960.0,111950.0,0.10052351]
[1757364146252,1.91711033,111960.0,111950.0,0.10052351]
[1757364146663,1.917184,111960.0,111950.0,0.10052351]
[1757364155791,1.11252708,111960.0,111950.0,0.10052351]
[1757364156294,1.917184,111960.0,111950.0,0.10052351]
[1757364157527,2.356584,111960.0,111950.0,0.10052351]
[1757364165316,2.206784,111960.0,111950.0,0.10052351]
[1757364165516,2.356424,111960.0,111950.0,0.10052351]
[1757364168703,2.36478554,111960.0,111950.0,0.10052351]
[1757364170482,2.21514554,111960.0,111950.0,0.10052351]
[1757364170695,2.36478554,111960.0,111950.0,0.10052351]
[1757364171796,2.36478554,111960.0,111950.0,0.09120665]
[1757364175232,2.36477472,111960.0,111950.0,0.09120665]
[1757364175457,2.21513472,111960.0,111950.0,0.09120665]
[1757364175703,2.36473472,111960.0,111950.0,0.09120665]
[1757364177300,2.32137344,111960.0,111950.0,0.09120665]
[1757364177563,2.36471694,111960.0,111950.0,0.09120665]
[1757364182305,2.3967599,111960.0,111950.0,0.09120665]
[1757364182738,2.36471694,111960.0,111950.0,0.09120665]
[1757364182964,2.3967599,111960.0,111950.0,0.09120665]
[1757364183414,2.3967599,111960.0,111950.0,1e-08]
[1757364185216,2.39675887,111960.0,111950.0,1e-08]
[1757364186488,2.7991461,111960.0,111950.0,1e-08]
[1757364192423,2.82877306,111960.0,111950.0,1e-08]
[1757364193498,2.67917306,111960.0,111950.0,1e-08]
[1757364193714,2.82869306,111960.0,111950.0,1e-08]
[1757364195519,4.03573721,111960.0,111950.0,1e-08]
[1757364195735,4.01165749,111960.0,111950.0,1e-08]
[1757364195948,4.01632043,111960.0,111950.0,1e-08]
[1757364196411,4.01004992,111960.0,111950.0,1e-08]
[1757364196636,4.01631755,111960.0,111950.0,1e-08]
[1757364196858,4.06438199,111960.0,111950.0,1e-08]
[1757364197784,4.0643761,111960.0,111950.0,1e-08]
[1757364200517,4.06437134,111960.0,111950.0,1e-08]
[1757364200740,3.62497134,111960.0,111950.0,1e-08]
[1757364203286,3.5769069,111960.0,111950.0,1e-08]
[1757364204081,3.57063687,111960.0,111950.0,1e-08]
[1757364204282,3.5455615,111960.0,111950.0,1e-08]
[1757364204530,3.57687587,111960.0,111950.0,1e-08]
[1757364207648,3.42735587,111960.0,111950.0,1e-08]
[1757364207873,3.57683587,111960.0,111950.0,1e-08]
[1757364209160,3.42735587,111960.0,111950.0,1e-08]
[1757364209365,3.57683587,111960.0,111950.0,1e-08]
[1757364210354,3.67683587,111960.0,111950.0,1e-08]
[1757364211391,3.72490031,111960.0,111950.0,1e-08]
[1757364213967,3.57542031,111960.0,111950.0,1e-08]
[1757364214199,3.72490031,111960.0,111950.0,1e-08]
[1757364214927,3.57542031,111960.0,111950.0,1e-08]
[1757364215125,3.72486031,111960.0,111950.0,1e-08]
[1757364216414,3.69281735,111960.0,111950.0,1e-08]
[1757364218221,3.68446911,111960.0,111950.0,1e-08]
[1757364218432,3.69282297,111960.0,111950.0,1e-08]
[1757364218636,3.69282395,111960.0,111950.0,1e-08]
[1757364219853,0.1786831,111930.0,111920.0,0.0112]
[1757364220070,1.2426035,111930.0,111920.0,0.0112]
[1757364220269,1.26401139,111930.0,111920.0,0.0112]
[1757364220443,1.26706139,111930.0,111920.0,0.0112]
[1757364220656,1.29387908,111930.0,111920.0,0.0112]
[1757364221197,1.29434132,111930.0,111920.0,0.0112]
[1757364221691,1.29434132,111930.0,111920.0,0.0122]
[1757364224714,1.29434132,111930.0,111920.0,0.0112]
[1757364225103,1.33442043,111930.0,111920.0,0.0112]
[1757364225923,1.33642043,111930.0,111920.0,0.0112]
[1757364226121,0.53172433,111930.0,111920.0,0.0112]
[1757364226334,1.33642043,111930.0,111920.0,0.0112]
[1757364227082,1.18698043,111930.0,111920.0,0.0112]
[1757364227428,1.33638043,111930.0,111920.0,0.0112]
[1757364228888,1.18698043,111930.0,111920.0,0.0112]
[1757364230732,1.40638043,111930.0,111920.0,0.0112]